fUSD/lending_fUSD_20241123
["ID","MTS","AMOUNT","RATE_DAILY","PERIOD"]
[343145550,1732380644176,-500.0,0.00055171,120]
[343145551,1732380644187,-500.0,0.00055171,120]
[343145552,1732380644199,-500.0,0.00055171,120]
[343145553,1732380644209,-500.0,0.00055171,120]
[343145554,1732380644219,-500.0,0.00055171,21]
[343145555,1732380644228,-500.0,0.00055171,120]
[343145556,1732380644239,-500.0,0.00055171,120]
[343145557,1732380644249,-500.0,0.00055171,120]
[343145558,1732380644259,-500.0,0.00055171,120]
[343145559,1732380644269,-287.44873889,0.00055177,28]
[343145560,1732380644279,-1334.72,0.00055192,120]
[343145561,1732380644289,-500.0,0.00055192,120]
[343145562,1732380644298,-1400.0,0.000552,20]
[343145563,1732380644309,-1257.0,0.00055205,120]
[343145564,1732380644318,-629.0,0.00055205,120]
[343145565,1732380644328,-1996.0,0.00055205,120]
[343145566,1732380644338,-150.0,0.00055205,120]
[343145567,1732380644348,-307.377,0.00055205,120]
[343145568,1732380644358,-1928.0,0.00055205,120]
[343145569,1732380644368,-815.0,0.00055205,2]
[343145570,1732380644378,-3750.0,0.00055205,120]
[343145571,1732380644388,-1261.0,0.00055205,120]
[343145572,1732380644398,-3517.0,0.00055205,120]
[343145573,1732380644407,-918.0,0.00055205,120]
[343145574,1732380644417,-1162.0,0.00055205,120]
[343145575,1732380644430,-13666.0,0.00055205,120]
[343145576,1732380644440,-150.0,0.00055205,2]
[343145577,1732380644450,-150.0,0.00055205,120]
[343145578,1732380644459,-5944.0,0.00055205,120]
[343145579,1732380644469,-1094.0,0.00055205,120]
[343145580,1732380644480,-164.38,0.00055267,120]
[343145581,1732380644489,-1700.0,0.000553,20]
[343145582,1732380644498,-500.0,0.00055329,120]
[343145583,1732380644508,-500.0,0.00055329,120]
[343145584,1732380644517,-500.0,0.00055329,120]
[343145585,1732380644527,-502.27962519,0.00055329,120]
[343145586,1732380644537,-507.24923578,0.00055329,120]
[343145587,1732380644547,-500.0,0.00055329,120]
[343145588,1732380644557,-500.0,0.00055329,120]
[343145589,1732380644567,-500.0,0.00055329,120]
[343145590,1732380644577,-500.0,0.00055329,120]
[343145591,1732380644587,-516.91,0.00055329,120]
[343145592,1732380644596,-500.0,0.0005533,120]
[343145593,1732380644606,-500.0,0.0005533,120]
[343145594,1732380644616,-500.0,0.0005533,120]
[343145595,1732380644625,-500.0,0.0005533,120]
[343145596,1732380644635,-500.0,0.0005533,120]
[343145597,1732380644644,-500.0,0.0005533,120]
[343145598,1732380644653,-426.26,0.0005533,120]
[343145599,1732380644662,-500.0,0.0005533,120]
[343145600,1732380644676,-500.0,0.0005533,120]
[343145601,1732380644685,-500.0,0.0005533,120]
[343145602,1732380644694,-612.86,0.0005533,120]
[343145603,1732380644703,-500.0,0.0005533,120]
[343145604,1732380644713,-500.0,0.0005533,120]
[343145605,1732380644722,-500.0,0.0005533,120]
[343145606,1732380644732,-500.0,0.0005533,120]
[343145607,1732380644742,-500.0,0.0005533,120]
[343145608,1732380644751,-180.57186955,0.0005533,120]
[343145609,1732380644761,-500.0,0.0005533,120]
[343145610,1732380644771,-500.0,0.0005533,120]
[343145611,1732380644781,-500.0,0.0005533,120]
[343145612,1732380644790,-635.249999,0.0005533,120]
[343145613,1732380644800,-500.0,0.0005533,120]
[343145614,1732380644810,-500.0,0.0005533,120]
[343145615,1732380644820,-83459.73,0.00055331,2]
[343145616,1732380644829,-300.0,0.000554,20]
[343145617,1732380644839,-362.86,0.00055443,60]
[343145618,1732380644848,-789.95174069,0.00055486,120]
[343145619,1732380644858,-300.0,0.000555,20]
[343145620,1732380644868,-300.0,0.000556,20]
[343145621,1732380644877,-300.0,0.000557,20]
[343145622,1732380644887,-500.0,0.00055738,120]
[343145623,1732380644897,-500.0,0.00055738,120]
[343145624,1732380644906,-500.0,0.00055738,120]
[343145625,1732380644916,-465.94,0.00055738,120]
[343145626,1732380644930,-500.0,0.00055738,120]
[343145627,1732380644940,-536.02,0.00055738,120]
[343145628,1732380644950,-500.0,0.00055738,120]
[343145629,1732380644959,-500.0,0.00055738,120]
[343145630,1732380644969,-500.0,0.00055738,120]
[343145631,1732380644979,-500.0,0.00055738,120]
[343145632,1732380644989,-500.0,0.00055738,120]
[343145633,1732380644998,-500.0,0.00055738,120]
[343145634,1732380645007,-595.58,0.00055738,54]
[343145635,1732380645018,-562.36,0.00055738,120]
[343145636,1732380645028,-500.0,0.00055738,120]
[343145637,1732380645037,-565.25,0.00055738,120]
[343145638,1732380645047,-500.0,0.00055738,120]
[343145639,1732380645056,-500.0,0.00055738,120]
[343145640,1732380645066,-500.0,0.00055738,120]
[343145641,1732380645075,-500.0,0.00055738,120]
[343145642,1732380645085,-618.57,0.00055738,120]
[343145643,1732380645094,-554.72,0.00055738,120]
[343145644,1732380645104,-500.0,0.00055738,120]
[343145645,1732380645114,-500.0,0.00055738,120]
[343145646,1732380645124,-500.0,0.00055738,30]
[343145647,1732380645134,-377.60126162,0.00055738,120]
[343145648,1732380645144,-500.0,0.00055738,120]
[343145649,1732380645155,-500.0,0.00055738,120]
[343145650,1732380645165,-500.0,0.00055738,120]
[343145651,1732380645178,-500.0,0.00055738,120]
[343145652,1732380645189,-58718.0,0.0005574,120]
[343145653,1732380645199,-838.0,0.000558,20]
[343145654,1732380645210,-1017.46561785,0.000558,120]
[343145655,1732380645221,-353.054276,0.000558,120]
[343145656,1732380645231,-1017.46561784,0.00055845,120]
[343145657,1732380645240,-6504.73134242,0.00055846,7]
[343145658,1732380645250,-3897.09256174,0.00055849,7]
[343145659,1732380645267,-1956.0,0.00055857,25]
[343145660,1732380645279,-352.95,0.00055858,120]
[343145661,1732380645291,-500.0,0.00055858,120]
[343145662,1732380645301,-215.72017769,0.00055858,120]
[343145663,1732380645311,-642.30364894,0.00055858,120]
[343145664,1732380645321,-500.0,0.00055858,120]
[343145665,1732380645330,-500.0,0.00055858,120]
[343145666,1732380645340,-1450.67,0.00055858,120]
[343145667,1732380645350,-500.0,0.00055858,120]
[343145668,1732380645360,-500.0,0.00055858,120]
[343145669,1732380645370,-500.0,0.00055858,120]
[343145670,1732380645380,-500.0,0.00055858,120]
[343145671,1732380645390,-500.0,0.00055858,120]
[343145672,1732380645399,-500.0,0.00055858,120]
[343145673,1732380645409,-500.0,0.00055858,120]
[343145674,1732380645419,-276.26,0.00055858,120]
[343145675,1732380645430,-451.6,0.00055858,120]
[343145676,1732380645440,-500.0,0.00055858,120]
[343145677,1732380645449,-190.52,0.00055858,120]
[343145678,1732380645459,-500.0,0.00055858,120]
[343145679,1732380645469,-443.37,0.00055858,21]
[343145680,1732380645479,-162.235863,0.00055858,120]
[343145681,1732380645489,-500.0,0.00055858,120]
[343145682,1732380645498,-563.4,0.00055858,120]
[343145683,1732380645507,-361.95812874,0.00055858,120]
[343145684,1732380645517,-9087.86549475,0.00055859,7]
[343145685,1732380645528,-2516.98,0.00055863,120]
[343145686,1732380645537,-641.86769715,0.00055863,120]
[343145687,1732380645547,-3897.09256174,0.00055863,7]
[343145688,1732380645557,-1182.97204557,0.00055872,7]
[343145689,1732380645567,-1334.72,0.00055879,120]
[343145690,1732380645576,-500.0,0.00055879,120]
[343145691,1732380645586,-167.17599049,0.00055888,34]
[343145692,1732380645596,-174.23508864,0.00055889,34]
[343145693,1732380645605,-209.29661421,0.0005589,15]
[343145694,1732380645615,-1017.46561784,0.0005589,120]
[343145695,1732380645625,-287.44873889,0.0005589,28]
[343145696,1732380645635,-1698.6535049,0.0005589,15]
[343145697,1732380645644,-312.29646249,0.0005589,2]
[343145698,1732380645654,-6504.73134242,0.00055898,7]
[343145699,1732380645664,-486.0,0.000559,3]
[343145700,1732380645675,-4974.47919745,0.000559,14]
[343145701,1732380645685,-5000.0,0.000559,120]
[343145702,1732380645695,-2063.0,0.00055918,120]
[343145703,1732380645705,-175.41071215,0.00055942,14]
[343145704,1732380645715,-500.0,0.00055943,120]
[343145705,1732380645725,-500.0,0.00055943,120]
[343145706,1732380645735,-500.0,0.00055943,120]
[343145707,1732380645744,-503.24592917,0.00055943,120]
[343145708,1732380645754,-500.0,0.00055943,120]
[343145709,1732380645764,-500.0,0.00055943,120]
[343145710,1732380645773,-500.0,0.00055943,120]
[343145711,1732380645783,-500.0,0.00055943,120]
[343145712,1732380645793,-500.0,0.00055943,120]
[343145713,1732380645803,-500.0,0.00055943,120]
[343145714,1732380645813,-500.0,0.00055943,120]
[343145715,1732380645822,-500.0,0.00055943,120]
[343145716,1732380645832,-500.0,0.00055943,120]
[343145717,1732380645841,-588.6,0.00055943,120]
[343145718,1732380645851,-500.0,0.00055943,120]
[343145719,1732380645861,-626.97,0.00055943,120]
[343145720,1732380645871,-500.0,0.00055943,120]
[343145721,1732380645880,-43414.36935171,0.00055944,7]
[343145722,1732380645890,-9087.86549475,0.00055953,7]
[343145723,1732380645900,-43414.36935171,0.00055966,7]
[343145724,1732380645910,-431.48602282,0.00055983,7]
[343145725,1732380645919,-1334.72,0.00055987,120]
[343145726,1732380645935,-500.0,0.00055987,120]
[343145728,1732380645945,-500.0,0.00055987,120]
[343145730,1732380645955,-500.0,0.00055987,120]
[343145732,1732380645965,-500.0,0.00055987,120]
[343145734,1732380645975,-436.36,0.00055987,120]
[343145735,1732380645985,-500.0,0.00055987,120]
[343145737,1732380645994,-500.0,0.00055987,120]
[343145738,1732380646004,-500.0,0.00055987,120]
[343145739,1732380646014,-500.0,0.00055987,120]
[343145740,1732380646024,-500.0,0.00055987,120]
[343145741,1732380646033,-562.36,0.00055987,120]
[343145742,1732380646043,-500.0,0.00055987,120]
[343145744,1732380646052,-448.08,0.00055987,120]
[343145745,1732380646063,-500.0,0.00055987,120]
[343145746,1732380646072,-618.57,0.00055987,120]
[343145747,1732380646081,-500.0,0.00055987,120]
[343145748,1732380646091,-500.0,0.00055987,120]
[343145749,1732380646101,-331.35,0.00055987,120]
[343145751,1732380646111,-500.0,0.00055987,120]
[343145752,1732380646121,-500.0,0.00055987,120]
[343145753,1732380646131,-500.0,0.00055987,120]
[343145754,1732380646140,-1334.72,0.00055988,120]
[343145755,1732380646150,-1334.72,0.00055988,120]
[343145756,1732380646159,-1334.72,0.00055988,120]
[343145757,1732380646169,-1334.72,0.00055988,120]
[343145758,1732380646188,-500.0,0.00055988,120]
[343145759,1732380646204,-500.0,0.00055988,120]
[343145760,1732380646214,-500.0,0.00055988,120]
[343145761,1732380646224,-500.0,0.00055988,120]
[343145762,1732380646235,-500.0,0.00055988,120]
[343145763,1732380646245,-500.0,0.00055988,120]
[343145764,1732380646255,-500.0,0.00055988,120]
[343145765,1732380646265,-500.0,0.00055988,120]
[343145766,1732380646275,-500.0,0.00055988,120]
[343145767,1732380646288,-500.0,0.00055988,120]
[343145768,1732380646298,-521.83964685,0.00055988,120]
[343145769,1732380646307,-500.0,0.00055988,120]
[343145770,1732380646318,-500.0,0.00055988,120]
[343145771,1732380646329,-500.0,0.00055988,120]
[343145772,1732380646339,-1450.67,0.00055988,120]
[343145773,1732380646349,-500.0,0.00055988,120]
[343145774,1732380646359,-500.0,0.00055988,120]
[343145775,1732380646368,-500.0,0.00055988,120]
[343145776,1732380646377,-207.61,0.00055988,120]
[343145777,1732380646388,-500.0,0.00055988,120]
[343145778,1732380646398,-500.0,0.00055988,120]
[343145779,1732380646408,-500.0,0.00055988,120]
[343145780,1732380646418,-500.0,0.00055988,120]
[343145781,1732380646436,-500.0,0.00055988,120]
[343145782,1732380646447,-256.96,0.00055988,120]
[343145783,1732380646458,-2516.98,0.00055988,120]
[343145784,1732380646468,-500.0,0.00055988,120]
[343145785,1732380646478,-13709.4772168,0.00055989,120]
[343145789,1732380646663,-1479.55318,0.00055989,120]
[343145790,1732380646708,-500.0,0.00054794,120]
[343145791,1732380646719,-500.0,0.00055171,120]
[343145792,1732380646729,-383.07,0.00055858,120]
[343145793,1732380646739,-1955.42884017,0.00055989,120]
[343145794,1732380646751,-3945.39559301,0.00055989,120]
[343145795,1732380646761,-1334.72,0.00055989,120]
[343145796,1732380646770,-1334.72,0.00055989,120]
[343145797,1732380646780,-239.9847864,0.00055989,120]
[343145798,1732380646796,-292.345812,0.00055989,120]
[343145799,1732380646808,-802.3894016,0.00055989,120]
[343145800,1732380646817,-99.0308813,0.00055989,120]
[343145801,1732380646829,-540.71771042,0.00055989,120]
[343145802,1732380646840,-694.97140828,0.00055989,120]
[343145803,1732380646849,-1334.72,0.00055989,120]
[343145804,1732380646858,-1334.72,0.00055989,120]
[343145805,1732380646867,-1334.72,0.00055989,120]
[343145806,1732380646877,-1334.72,0.00055989,120]
[343145807,1732380646887,-1334.72,0.00055989,120]
[343145808,1732380646896,-906.60701758,0.00055989,120]
[343145809,1732380646908,-428.22455073,0.00055989,120]
[343145810,1732380646917,-370.48,0.00055989,120]
[343145811,1732380646933,-352.06544934,0.00055989,120]
[343145812,1732380646945,-147.93455066,0.00055989,120]
[343145813,1732380646954,-226.67444934,0.00055989,120]
[343145814,1732380646966,-273.32555066,0.00055989,120]
[343145815,1732380646975,-500.0,0.00055989,120]
[343145816,1732380646984,-191.57,0.00055989,120]
[343145817,1732380646994,-500.0,0.00055989,120]
[343145818,1732380647004,-500.0,0.00055989,120]
[343145819,1732380647013,-147.76835269,0.00055989,120]
[343145820,1732380647025,-204.32164731,0.00055989,120]
[343145821,1732380647034,-500.0,0.00055989,120]
[343145822,1732380647043,-500.0,0.00055989,120]
[343145823,1732380647051,-285.79,0.00055989,120]
[343145824,1732380647060,-235.97,0.00055989,120]
[343145825,1732380647070,-501.77,0.00055989,120]
[343145826,1732380647079,-562.36,0.00055989,120]
[343145827,1732380647089,-562.36,0.00055989,120]
[343145828,1732380647099,-562.36,0.00055989,120]
[343145829,1732380647108,-562.36,0.00055989,120]
[343145830,1732380647117,-562.36,0.00055989,120]
[343145831,1732380647127,-562.36,0.00055989,120]
[343145832,1732380647136,-562.36,0.00055989,120]
[343145833,1732380647145,-562.36,0.00055989,120]
[343145834,1732380647154,-562.36,0.00055989,120]
[343145835,1732380647164,-562.36,0.00055989,120]
[343145836,1732380647177,-562.36,0.00055989,120]
[343145837,1732380647187,-562.36,0.00055989,120]
[343145838,1732380647201,-562.36,0.00055989,120]
[343145839,1732380647211,-562.36,0.00055989,120]
[343145840,1732380647223,-562.36,0.00055989,120]
[343145841,1732380647233,-562.36,0.00055989,120]
[343145842,1732380647244,-562.36,0.00055989,120]
[343145843,1732380647254,-562.36,0.00055989,120]
[343145844,1732380647263,-562.36,0.00055989,120]
[343145845,1732380647274,-562.47237903,0.00055989,120]
[343145846,1732380647284,-442.04,0.00055989,120]
[343145847,1732380647294,-500.0,0.00055989,120]
[343145848,1732380647303,-500.0,0.00055989,120]
[343145849,1732380647315,-500.0,0.00055989,120]
[343145850,1732380647324,-500.0,0.00055989,120]
[343145851,1732380647334,-500.0,0.00055989,120]
[343145852,1732380647342,-500.0,0.00055989,120]
[343145853,1732380647351,-500.0,0.00055989,120]
[343145854,1732380647360,-500.0,0.00055989,120]
[343145855,1732380647370,-466.39,0.00055989,120]
[343145856,1732380647379,-500.0,0.00055989,120]
[343145857,1732380647389,-384.84,0.00055989,120]
[343145858,1732380647399,-412.56,0.00055989,120]
[343145859,1732380647409,-15032.65972506,0.00055989,30]
[343145860,1732380647486,-1451.07061898,0.0005595,30]
[343145861,1732380647495,-1500.0,0.0005597,30]
[343145862,1732380647506,-15338.48455604,0.00055989,30]
[343145863,1732380647518,-2609.76948421,0.00055989,30]
[343145864,1732380647530,-6158.75972606,0.00055989,30]
[343145865,1732380647542,-4329.46031583,0.00055989,30]
[343145866,1732380647553,-618.57,0.00055989,120]
[343145867,1732380647563,-618.57,0.00055989,120]
[343145868,1732380647572,-618.57,0.00055989,120]
[343145869,1732380647582,-460.76562425,0.00055989,120]
[343145870,1732380647598,-204.58869476,0.0005543,27]
[343145871,1732380647608,-39.23437575,0.00055989,120]
[343145872,1732380647618,-618.57,0.00055989,120]
[343145873,1732380647628,-500.0,0.00055989,120]
[343145874,1732380647637,-618.57,0.00055989,120]
[343145875,1732380647647,-410.05,0.00055989,120]
[343145876,1732380647657,-618.57,0.00055989,120]
[343145877,1732380647667,-618.57,0.00055989,120]
[343145878,1732380647682,-618.57,0.00055989,120]
[343145879,1732380647692,-618.57,0.00055989,120]
[343145880,1732380647702,-618.57,0.00055989,120]
[343145881,1732380647712,-618.57,0.00055989,120]
[343145882,1732380647721,-618.57,0.00055989,120]
[343145883,1732380647731,-618.57,0.00055989,120]
[343145884,1732380647740,-618.57,0.00055989,120]
[343145885,1732380647749,-618.57,0.00055989,120]
[343145886,1732380647759,-618.57,0.00055989,120]
[343145887,1732380647768,-618.57,0.00055989,120]
[343145888,1732380647777,-618.57,0.00055989,120]
[343145889,1732380647787,-618.57,0.00055989,120]
[343145890,1732380647796,-801.01897856,0.00055989,30]
[343145891,1732380647805,-618.68709713,0.00055989,120]
[343145892,1732380647815,-500.0,0.00055989,120]
[343145893,1732380647825,-500.0,0.00055989,120]
[343145894,1732380647834,-498.75,0.00055989,120]
[343145895,1732380647843,-500.0,0.00055989,120]
[343145896,1732380647852,-361.42,0.00055989,120]
[343145897,1732380647860,-500.0,0.00055989,120]
[343145898,1732380647869,-500.0,0.00055989,120]
[343145899,1732380647878,-500.0,0.00055989,120]
[343145900,1732380647887,-500.0,0.00055989,120]
[343145901,1732380647897,-500.0,0.00055989,120]
[343145902,1732380647906,-500.0,0.00055989,120]
[343145903,1732380647915,-500.0,0.00055989,120]
[343145904,1732380647928,-500.0,0.00055989,120]
[343145905,1732380647938,-500.0,0.00055989,120]
[343145906,1732380647947,-500.0,0.00055989,120]
[343145907,1732380647956,-500.0,0.00055989,120]
[343145908,1732380647965,-500.0,0.00055989,120]
[343145909,1732380647974,-500.0,0.00055989,120]
[343145910,1732380647984,-500.0,0.00055989,120]
[343145911,1732380647993,-516.61,0.00055989,120]
[343145912,1732380648003,-500.0,0.00055989,120]
[343145913,1732380648012,-500.0,0.00055989,120]
[343145914,1732380648022,-500.0,0.00055989,120]
[343145915,1732380648031,-500.0,0.00055989,120]
[343145916,1732380648041,-500.0,0.00055989,120]
[343145917,1732380648051,-500.0,0.00055989,120]
[343145918,1732380648061,-500.0,0.00055989,120]
[343145919,1732380648071,-500.0,0.00055989,120]
[343145920,1732380648081,-500.0,0.00055989,120]
[343145921,1732380648091,-500.0,0.00055989,120]
[343145922,1732380648100,-500.0,0.00055989,120]
[343145923,1732380648110,-500.0,0.00055989,120]
[343145924,1732380648119,-200.38,0.00055989,120]
[343145925,1732380648129,-500.0,0.00055989,120]
[343145926,1732380648139,-500.0,0.00055989,120]
[343145927,1732380648149,-500.0,0.00055989,120]
[343145928,1732380648160,-500.0,0.00055989,120]
[343145929,1732380648170,-215.9,0.00055989,120]
[343145930,1732380648183,-500.0,0.00055989,120]
[343145931,1732380648194,-500.0,0.00055989,120]
[343145932,1732380648204,-500.0,0.00055989,120]
[343145933,1732380648216,-500.0,0.00055989,120]
[343145934,1732380648226,-500.0,0.00055989,120]
[343145935,1732380648236,-500.0,0.00055989,120]
[343145936,1732380648245,-500.0,0.00055989,120]
[343145937,1732380648255,-500.0,0.00055989,120]
[343145938,1732380648265,-267.55,0.00055989,120]
[343145939,1732380648274,-500.0,0.00055989,120]
[343145940,1732380648285,-500.0,0.00055989,120]
[343145941,1732380648295,-193.07,0.00055989,120]
[343145942,1732380648306,-1450.67,0.00055989,120]
[343145943,1732380648316,-500.0,0.00055989,120]
[343145944,1732380648326,-500.0,0.00055989,120]
[343145945,1732380648335,-1450.67,0.00055989,120]
[343145946,1732380648345,-500.0,0.00055989,120]
[343145947,1732380648355,-1450.67,0.00055989,120]
[343145948,1732380648364,-500.0,0.00055989,120]
[343145949,1732380648375,-1450.67,0.00055989,120]
[343145950,1732380648386,-500.0,0.00055989,120]
[343145951,1732380648396,-1450.67,0.00055989,120]
[343145952,1732380648407,-500.0,0.00055989,120]
[343145953,1732380648417,-1450.67,0.00055989,120]
[343145954,1732380648431,-483.0030476,0.00055989,120]
[343145955,1732380648442,-1450.67,0.00055989,120]
[343145956,1732380648452,-1450.67,0.00055989,120]
[343145957,1732380648463,-1450.67,0.00055989,120]
[343145958,1732380648473,-1450.67,0.00055989,120]
[343145959,1732380648484,-1450.67,0.00055989,120]
[343145960,1732380648494,-1450.67,0.00055989,120]
[343145961,1732380648505,-1450.67,0.00055989,120]
[343145962,1732380648515,-1434.61353557,0.00055989,120]
[343145963,1732380648530,-16.05646443,0.00055989,120]
[343145964,1732380648541,-1450.67,0.00055989,120]
[343145965,1732380648551,-488.02523557,0.00055989,120]
[343145966,1732380648564,-962.64476443,0.00055989,120]
[343145967,1732380648574,-1450.67,0.00055989,120]
[343145968,1732380648585,-1450.67,0.00055989,120]
[343145969,1732380648596,-1418.1637525,0.00055989,120]
[343145970,1732380648608,-32.72823355,0.00055989,120]
[343145971,1732380648619,-285.89006645,0.00055989,120]
[343145972,1732380648639,-169.3164981,0.00055772,62]
[343145973,1732380648648,-214.10993355,0.00055989,120]
[343145974,1732380648658,-318.04852612,0.00055989,120]
[343145975,1732380648678,-517.72194077,0.00054794,120]
[343145976,1732380648688,-262.12147388,0.00055989,120]
[343145977,1732380648699,-500.0,0.00055989,120]
[343145978,1732380648709,-423.38231135,0.00055989,120]
[343145979,1732380648722,-76.61768865,0.00055989,120]
[343145980,1732380648732,-353.92227135,0.00055989,120]
[343145981,1732380648805,-146.07772865,0.00055989,120]
[343145982,1732380648815,-501.72801229,0.00055989,120]
[343145983,1732380648825,-500.0,0.00055989,120]
[343145984,1732380648836,-500.0,0.00055989,120]
[343145985,1732380648846,-500.0,0.00055989,120]
[343145986,1732380648857,-500.0,0.00055989,120]
[343145987,1732380648867,-237.48897615,0.00055989,120]
[343145988,1732380648877,-500.0,0.00055989,120]
[343145989,1732380648887,-500.0,0.00055989,120]
[343145990,1732380648897,-500.0,0.00055989,120]
[343145991,1732380648906,-500.0,0.00055989,120]
[343145992,1732380648916,-500.0,0.00055989,120]
[343145993,1732380648928,-500.0,0.00055989,120]
[343145994,1732380648938,-500.0,0.00055989,120]
[343145995,1732380648948,-500.0,0.00055989,120]
[343145996,1732380648958,-500.0,0.00055989,120]
[343145997,1732380648968,-500.0,0.00055989,120]
[343145998,1732380648978,-500.0,0.00055989,120]
[343145999,1732380648988,-500.0,0.00055989,120]
[343146000,1732380648998,-500.0,0.00055989,120]
[343146001,1732380649008,-500.0,0.00055989,120]
[343146002,1732380649018,-500.0,0.00055989,120]
[343146003,1732380649028,-500.0,0.00055989,120]
[343146004,1732380649039,-500.0,0.00055989,120]
[343146005,1732380649050,-500.0,0.00055989,120]
[343146006,1732380649060,-500.0,0.00055989,120]
[343146007,1732380649071,-500.0,0.00055989,120]
[343146008,1732380649081,-647.48,0.00055989,120]
[343146009,1732380649091,-500.0,0.00055989,120]
[343146010,1732380649101,-500.0,0.00055989,120]
[343146011,1732380649111,-382.37128234,0.00055989,120]
[343146012,1732380649122,-500.0,0.00055989,120]
[343146013,1732380649132,-500.0,0.00055989,120]
[343146014,1732380649143,-500.0,0.00055989,120]
[343146015,1732380649153,-500.0,0.00055989,120]
[343146016,1732380649164,-500.0,0.00055989,120]
[343146017,1732380649176,-500.0,0.00055989,120]
[343146018,1732380649187,-500.0,0.00055989,120]
[343146019,1732380649201,-500.0,0.00055989,120]
[343146020,1732380649212,-500.0,0.00055989,120]
[343146021,1732380649222,-500.0,0.00055989,120]
[343146022,1732380649233,-500.0,0.00055989,120]
[343146023,1732380649244,-500.0,0.00055989,120]
[343146024,1732380649255,-500.0,0.00055989,120]
[343146025,1732380649265,-500.0,0.00055989,120]
[343146026,1732380649276,-240.77045787,0.00055989,120]
[343146027,1732380649286,-500.0,0.00055989,120]
[343146028,1732380649296,-500.0,0.00055989,120]
[343146029,1732380649306,-266.17,0.00055989,120]
[343146030,1732380649317,-2516.98,0.00055989,120]
[343146031,1732380649328,-814.38184312,0.00055989,120]
[343146032,1732380649341,-1702.59815688,0.00055989,120]
[343146033,1732380649353,-2516.98,0.00055989,120]
[343146034,1732380649364,-2516.98,0.00055989,120]
[343146035,1732380649374,-2516.98,0.00055989,120]
[343146036,1732380649384,-804.83278312,0.00055989,120]
[343146037,1732380649396,-1712.14721688,0.00055989,120]
[343146038,1732380649407,-2516.98,0.00055989,120]
[343146039,1732380649417,-2516.98,0.00055989,120]
[343146040,1732380649430,-2516.98,0.00055989,120]
[343146041,1732380649440,-2516.98,0.00055989,120]
[343146042,1732380649450,-2516.98,0.00055989,120]
[343146043,1732380649461,-2516.98,0.00055989,120]
[343146044,1732380649471,-2378.67048312,0.00055989,120]
[343146045,1732380649484,-138.30951688,0.00055989,120]
[343146046,1732380649494,-2516.98,0.00055989,120]
[343146047,1732380649505,-2516.98,0.00055989,120]
[343146048,1732380649515,-2516.98,0.00055989,120]
[343146049,1732380649526,-2516.98,0.00055989,120]
[343146050,1732380649537,-2516.98,0.00055989,120]
[343146051,1732380649547,-2517.19910078,0.00055989,120]
[343146052,1732380649558,-3.69553234,0.00055989,120]
[343146053,1732380649570,-496.30446766,0.00055989,120]
[343146054,1732380649580,-500.0,0.00055989,120]
[343146055,1732380649590,-500.0,0.00055989,120]
[343146056,1732380649601,-500.0,0.00055989,120]
[343146057,1732380649611,-268.75,0.00055989,120]
[343146058,1732380649621,-1135.64553234,0.0005599,120]
[343146059,1732380649634,-732.16273,0.0005599,120]